Workbook

Sheet 棠下镇乐溪村、罗江村、桐井村2023年晚稻（第四批）区级补贴
A1: 蓬江区棠下镇乐溪村、罗江村、桐井村2023年晚稻种植（第四批）区级补贴发放公示表
A2: 公示单位：江门市蓬江区农业农村和水利局 公示时间：2025年4月24日-2025年4月30日
A3: 序号 | B3: 镇 | C3: 村别 | D3: 申报主体 | E3: 2023年种植晚稻面积(亩) | F3: 补贴金额 （元）
A4: 1 | B4: 棠下镇 | C4: 桐井村 | D4: 江门市蓬江区棠下镇桐井股份合作经济联合社 | E4: 30 | F4: 9300
A5: 2 | B5: 棠下镇 | C5: 乐溪村 | D5: 刘*孝 | E5: 1.3 | F5: 403
A6: 3 | B6: 棠下镇 | C6: 乐溪村 | D6: 刘*礼 | E6: 1.5 | F6: 465
A7: 4 | B7: 棠下镇 | C7: 乐溪村 | D7: 覃*玲 | E7: 2 | F7: 620
A8: 5 | B8: 棠下镇 | C8: 乐溪村 | D8: 谭*胜 | E8: 7.5 | F8: 2325
A9: 6 | B9: 棠下镇 | C9: 乐溪村 | D9: 石*强 | E9: 2.5 | F9: 775
A10: 7 | B10: 棠下镇 | C10: 乐溪村 | D10: 谭*浪 | E10: 5 | F10: 1550
A11: 8 | B11: 棠下镇 | C11: 乐溪村 | D11: 梁*升 | E11: 6 | F11: 1860
A12: 9 | B12: 棠下镇 | C12: 乐溪村 | D12: 江门市蓬江区乐溪红葱农业生产专业合作社 | E12: 90.7 | F12: 28117
A13: 10 | B13: 棠下镇 | C13: 乐溪村 | D13: 陆*年 | E13: 1 | F13: 310
A14: 11 | B14: 棠下镇 | C14: 乐溪村 | D14: 陆*恩 | E14: 1 | F14: 310
A15: 12 | B15: 棠下镇 | C15: 罗江村 | D15: 何*英 | E15: 68 | F15: 21080
A16: 13 | B16: 棠下镇 | C16: 罗江村 | D16: 李*安 | E16: 2 | F16: 620
A17: 14 | B17: 棠下镇 | C17: 桐井村 | D17: 陆*光 | E17: 1.5 | F17: 465
A18: 15 | B18: 棠下镇 | C18: 桐井村 | D18: 杨*均 | E18: 15 | F18: 4650
A19: 16 | B19: 棠下镇 | C19: 桐井村 | D19: 李*宁 | E19: 15 | F19: 4650
A20: 棠下镇乐溪村、罗江村、桐井村合计 | E20: =SUM(E4:E19) -> 250 | F20: =SUM(F4:F19) -> 77500
A21: 注:棠下镇乐溪村、罗江村、桐井村2023年晚稻（第四批）区级补贴资金按310元/亩标准进行补贴

Sheet 棠下镇乐溪村、罗江村、桐井村2023年晚稻农田土地平整区级补贴
A1: 蓬江区棠下镇乐溪村、罗江村、桐井村2023年晚稻农田土地平整区级补贴发放公示表
A2: 公示单位：江门市蓬江区农业农村和水利局 公示时间：2025年4月24日-2025年4月30日
A3: 序号 | B3: 镇 | C3: 村别 | D3: 申报主体 | E3: 2023年种植晚稻（农田土地平整）面积（亩） | F3: 补贴金额 （元）
A4: 1 | B4: 棠下镇 | C4: 桐井村 | D4: 江门市蓬江区棠下镇桐井股份合作经济联合社 | E4: 30 | F4: =E4*1000 -> 30000
A5: 2 | B5: 棠下镇 | C5: 乐溪村 | D5: 江门市蓬江区乐溪红葱农业生产专业合作社 | E5: 90.7 | F5: 90700
A6: 3 | B6: 棠下镇 | C6: 罗江村 | D6: 何*英 | E6: 55 | F6: 55000
A7: 棠下镇乐溪村、罗江村、桐井村合计 | E7: =SUM(E4:E6) -> 175.7 | F7: =SUM(F4:F6) -> 175700
A8: 注:蓬江区棠下镇乐溪村、罗江村、桐井村2023年晚稻农田土地平整区级补贴资金按1000元/亩标准进行补贴

Sheet 棠下镇乐溪村、罗江村、桐井村2024年早稻区级补贴
A1: 蓬江区棠下镇乐溪村、罗江村、桐井村2024年早稻种植区级补贴发放公示表
A2: 公示单位：江门市蓬江区农业农村和水利局 公示时间：2025年4月24日-2025年4月30日
A3: 序号 | B3: 镇 | C3: 村别 | D3: 申报主体 | E3: 2024年种植早稻面积(亩) | F3: 补贴金额 （元）
A4: 1 | B4: 棠下镇 | C4: 罗江村 | D4: 钟*枝 | E4: 58 | F4: =E4*500 -> 29000
A5: 2 | B5: 棠下镇 | C5: 罗江村 | D5: 李*安 | E5: 2 | F5: 1000
A6: 3 | B6: 棠下镇 | C6: 桐井村 | D6: 梁*伟 | E6: 1 | F6: 500
A7: 4 | B7: 棠下镇 | C7: 桐井村 | D7: 李*全 | E7: 1.5 | F7: 750
A8: 5 | B8: 棠下镇 | C8: 桐井村 | D8: 陆*光 | E8: 1.5 | F8: 750
A9: 6 | B9: 棠下镇 | C9: 桐井村 | D9: 杨*均 | E9: 15 | F9: 7500
A10: 7 | B10: 棠下镇 | C10: 桐井村 | D10: 江门市蓬江区棠下镇桐井股份合作经济联合社 | E10: 30 | F10: 15000
A11: 8 | B11: 棠下镇 | C11: 桐井村 | D11: 李*宁 | E11: 15 | F11: 7500
A12: 9 | B12: 棠下镇 | C12: 乐溪村 | D12: 陆*义 | E12: 1.00 | F12: 500
A13: 10 | B13: 棠下镇 | C13: 乐溪村 | D13: 刘*孝 | E13: 1.30 | F13: 650
A14: 11 | B14: 棠下镇 | C14: 乐溪村 | D14: 刘*礼 | E14: 2.50 | F14: 1250
A15: 12 | B15: 棠下镇 | C15: 乐溪村 | D15: 覃*玲 | E15: 6.00 | F15: 3000
A16: 13 | B16: 棠下镇 | C16: 乐溪村 | D16: 谭*胜 | E16: 10.00 | F16: 5000
A17: 14 | B17: 棠下镇 | C17: 乐溪村 | D17: 石*强 | E17: 5.00 | F17: 2500
A18: 15 | B18: 棠下镇 | C18: 乐溪村 | D18: 陆*立 | E18: 1.00 | F18: 500
A19: 16 | B19: 棠下镇 | C19: 乐溪村 | D19: 谭*浪 | E19: 8.00 | F19: 4000
A20: 17 | B20: 棠下镇 | C20: 乐溪村 | D20: 陆*显 | E20: 0.70 | F20: 350
A21: 18 | B21: 棠下镇 | C21: 乐溪村 | D21: 江门市乐溪文化旅游产业有限公司 | E21: 80.00 | F21: 40000
A22: 19 | B22: 棠下镇 | C22: 乐溪村 | D22: 陈*兰 | E22: 5.00 | F22: 2500
A23: 棠下镇乐溪村、罗江村、桐井村合计 | E23: =SUM(E4:E22) -> 244.5 | F23: =SUM(F4:F22) -> 122250
A24: 注:棠下镇乐溪村、罗江村、桐井村2024年早稻种植区级补贴资金按500元/亩标准进行补贴

Sheet 棠下镇乐溪村、罗江村、桐井村2024年晚稻区级补贴
A1: 蓬江区棠下镇乐溪村、罗江村、桐井村2024年晚稻种植区级补贴发放公示表
A2: 公示单位：江门市蓬江区农业农村和水利局 公示时间：2025年4月24日-2025年4月30日
A3: 序号 | B3: 镇 | C3: 村别 | D3: 申报主体 | E3: 2024年种植晚稻面积(亩) | F3: 补贴金额 （元）
A4: 1 | B4: 棠下镇 | C4: 桐井村 | D4: 杨*均 | E4: 15.00 | F4: 7500
A5: 2 | B5: 棠下镇 | C5: 桐井村 | D5: 李*宁 | E5: 15.00 | F5: 7500
A6: 3 | B6: 棠下镇 | C6: 桐井村 | D6: 江门市蓬江区棠下镇桐井股份合作经济联合社 | E6: 40.00 | F6: 20000
A7: 4 | B7: 棠下镇 | C7: 乐溪村 | D7: 刘*孝 | E7: 1.50 | F7: 750
A8: 5 | B8: 棠下镇 | C8: 乐溪村 | D8: 刘*礼 | E8: 2.50 | F8: 1250
A9: 6 | B9: 棠下镇 | C9: 乐溪村 | D9: 陆*显 | E9: 0.70 | F9: 350
A10: 7 | B10: 棠下镇 | C10: 乐溪村 | D10: 江门市乐溪文化旅游产业有限公司 | E10: 102.80 | F10: 51400
A11: 8 | B11: 棠下镇 | C11: 乐溪村 | D11: 陈*兰 | E11: 5.00 | F11: 2500
A12: 9 | B12: 棠下镇 | C12: 乐溪村 | D12: 陆*年 | E12: 1.00 | F12: 500
A13: 10 | B13: 棠下镇 | C13: 罗江村 | D13: 李*安 | E13: 2 | F13: 1000
A14: 11 | B14: 棠下镇 | C14: 罗江村 | D14: 钟*枝 | E14: 58.00 | F14: 29000
A15: 棠下镇乐溪村、罗江村、桐井村合计 | E15: =SUM(E4:E14) -> 243.5 | F15: =SUM(F4:F14) -> 121750
A16: 注:棠下镇乐溪村、罗江村、桐井村2024年晚稻种植区级补贴资金按500元/亩标准进行补贴
